[Event "Titled Tuesday Blitz December 27 Early 2022"]
[White "Heinemann, Josefine"]
[Black "Sovetbekova, Nurai"]
[WhiteFideId "12900460"]
[BlackFideId "13801910"]
[WhiteElo "2289"]
[BlackElo "1764"]
[Result "1-0"]
[Round "05"]
[TimeControl "180+2"]
[Date "2022.12.27"]
[WhiteClock "0:00:56"]
[BlackClock "0:00:03"]

1. Nf3 {[%clk 0:03:00]}  Nf6 {[%clk 0:02:59]} 2. g3 {[%clk 0:02:58]}  g6 {[%clk 0:02:58]} 3. Bg2 {[%clk 0:02:58]}  Bg7 {[%clk 0:02:59]} 4. O-O {[%clk 0:02:59]}  O-O {[%clk 0:03:00]} 5. d4 {[%clk 0:02:59]}  c5 {[%clk 0:02:59]} 6. d5 {[%clk 0:02:57]}  b5 {[%clk 0:02:54]} 7. a4 {[%clk 0:02:56]}  b4 {[%clk 0:02:50]} 8. a5 {[%clk 0:02:55]}  Bb7 {[%clk 0:02:35]} 9. c4 {[%clk 0:02:50]}  bxc3 {[%clk 0:02:34]} 10. Nxc3 {[%clk 0:02:44]}  d6 {[%clk 0:02:31]} 11. e4 {[%clk 0:02:38]}  Na6 {[%clk 0:02:21]} 12. Re1 {[%clk 0:02:32]}  Nb4 {[%clk 0:02:19]} 13. Bf4 {[%clk 0:02:29]}  Qd7 {[%clk 0:01:53]} 14. Bf1 {[%clk 0:02:06]}  Rab8 {[%clk 0:01:21]} 15. Nd2 {[%clk 0:02:02]}  Ba6 {[%clk 0:01:01]} 16. Bxa6 {[%clk 0:01:57]}  Nxa6 {[%clk 0:01:02]} 17. Nc4 {[%clk 0:01:57]}  Rb4 {[%clk 0:00:32]} 18. Qd3 {[%clk 0:01:54]}  Nc7 {[%clk 0:00:22]} 19. e5 {[%clk 0:01:42]}  dxe5 {[%clk 0:00:20]} 20. Nxe5 {[%clk 0:01:42]}  Qh3 {[%clk 0:00:17]} 21. Rad1 {[%clk 0:01:20]}  Rd4 {[%clk 0:00:15]} 22. Qf1 {[%clk 0:01:18]}  Qxf1+ {[%clk 0:00:13]} 23. Kxf1 {[%clk 0:01:19]}  Ncxd5 {[%clk 0:00:13]} 24. Nc6 {[%clk 0:01:08]}  Rxd1 {[%clk 0:00:11]} 25. Rxd1 {[%clk 0:01:08]}  e6 {[%clk 0:00:09]} 26. Be5 {[%clk 0:01:06]}  Nxc3 {[%clk 0:00:08]} 27. Bxc3 {[%clk 0:01:03]}  Nd5 {[%clk 0:00:08]} 28. Bxg7 {[%clk 0:01:02]}  Kxg7 {[%clk 0:00:09]} 29. Rc1 {[%clk 0:01:00]}  Rc8 {[%clk 0:00:06]} 30. Nxa7 {[%clk 0:00:58]}  Ra8 {[%clk 0:00:04]} 31. Nc6 {[%clk 0:00:58]}  Ra6 {[%clk 0:00:04]} 32. Rxc5 {[%clk 0:00:57]}  Kf6 {[%clk 0:00:03]} 33. b4 {[%clk 0:00:56]} 1-0


[Site "https://www.chess.com"]

[Event "Titled Tuesday Blitz December 27 Early 2022"]
[White "Herman, Daniel"]
[Black "Peatman, Carter"]
[WhiteFideId "30935008"]
[BlackFideId "2096480"]
[WhiteElo "1956"]
[BlackElo "1998"]
[Result "1-0"]
[Round "05"]
[TimeControl "180+2"]
[Date "2022.12.27"]
[WhiteClock "0:01:19"]
[BlackClock "0:00:15"]

1. Nc3 {[%clk 0:03:00]}  d5 {[%clk 0:02:49]} 2. e4 {[%clk 0:02:59]}  d4 {[%clk 0:02:32]} 3. Nce2 {[%clk 0:02:59]}  c5 {[%clk 0:02:30]} 4. Nf3 {[%clk 0:02:56]}  Nc6 {[%clk 0:02:30]} 5. Ng3 {[%clk 0:02:56]}  e5 {[%clk 0:02:28]} 6. Bc4 {[%clk 0:02:55]}  Be7 {[%clk 0:02:25]} 7. d3 {[%clk 0:02:53]}  h5 {[%clk 0:02:18]} 8. h4 {[%clk 0:02:49]}  Bg4 {[%clk 0:02:11]} 9. Nf5 {[%clk 0:02:34]}  Bf6 {[%clk 0:01:57]} 10. Bg5 {[%clk 0:02:31]}  Bxf5 {[%clk 0:01:52]} 11. exf5 {[%clk 0:02:30]}  Qd7 {[%clk 0:01:53]} 12. c3 {[%clk 0:02:14]}  Qxf5 {[%clk 0:01:48]} 13. Qb3 {[%clk 0:02:14]}  Qd7 {[%clk 0:01:40]} 14. Qb5 {[%clk 0:01:45]}  Qe7 {[%clk 0:01:15]} 15. Bd5 {[%clk 0:01:42]}  Rc8 {[%clk 0:01:12]} 16. c4 {[%clk 0:01:38]}  a6 {[%clk 0:01:08]} 17. Qa4 {[%clk 0:01:37]}  Qd6 {[%clk 0:01:01]} 18. Nd2 {[%clk 0:01:31]}  Qe7 {[%clk 0:00:41]} 19. Ne4 {[%clk 0:01:29]}  Bxg5 {[%clk 0:00:38]} 20. hxg5 {[%clk 0:01:30]}  f5 {[%clk 0:00:34]} 21. gxf6 {[%clk 0:01:24]}  Nxf6 {[%clk 0:00:34]} 22. Ng5 {[%clk 0:01:20]}  Nxd5 {[%clk 0:00:17]} 23. cxd5 {[%clk 0:01:20]}  b5 {[%clk 0:00:17]} 24. Qxa6 {[%clk 0:01:20]}  Nb4 {[%clk 0:00:15]} 25. Qxc8+ {[%clk 0:01:19]} 1-0


[Site "https://www.chess.com"]

[Event "Titled Tuesday Blitz December 27 Early 2022"]
[White "Hirneise, Jens"]
[Black "Szyszylo, Rafal"]
[WhiteFideId "24614734"]
[BlackFideId "1109626"]
[WhiteElo "2277"]
[BlackElo "2091"]
[Result "1-0"]
[Round "05"]
[TimeControl "180+2"]
[Date "2022.12.27"]
[WhiteClock "0:00:52"]
[BlackClock "0:00:03"]

1. d4 {[%clk 0:03:00]}  d6 {[%clk 0:02:54]} 2. c4 {[%clk 0:03:00]}  g6 {[%clk 0:02:52]} 3. Nf3 {[%clk 0:03:00]}  Bg7 {[%clk 0:02:51]} 4. g3 {[%clk 0:03:01]}  Nf6 {[%clk 0:02:50]} 5. Bg2 {[%clk 0:03:01]}  O-O {[%clk 0:02:51]} 6. O-O {[%clk 0:03:02]}  Nc6 {[%clk 0:02:52]} 7. Nc3 {[%clk 0:03:02]}  a6 {[%clk 0:02:52]} 8. Bf4 {[%clk 0:02:56]}  Rb8 {[%clk 0:02:26]} 9. Rc1 {[%clk 0:02:54]}  Nh5 {[%clk 0:02:14]} 10. Bg5 {[%clk 0:02:52]}  h6 {[%clk 0:02:13]} 11. Be3 {[%clk 0:02:50]}  Nf6 {[%clk 0:02:09]} 12. h3 {[%clk 0:02:49]}  Nd7 {[%clk 0:01:50]} 13. Qd2 {[%clk 0:02:48]}  Kh7 {[%clk 0:01:49]} 14. b3 {[%clk 0:02:47]}  e5 {[%clk 0:01:42]} 15. dxe5 {[%clk 0:02:45]}  Ndxe5 {[%clk 0:01:32]} 16. Nxe5 {[%clk 0:02:40]}  dxe5 {[%clk 0:01:23]} 17. Nd5 {[%clk 0:02:32]}  Nd4 {[%clk 0:01:20]} 18. f4 {[%clk 0:02:28]}  c6 {[%clk 0:01:01]} 19. Nc3 {[%clk 0:02:18]}  Nf5 {[%clk 0:00:40]} 20. Qxd8 {[%clk 0:02:11]}  Rxd8 {[%clk 0:00:41]} 21. Bb6 {[%clk 0:02:11]}  Rd2 {[%clk 0:00:38]} 22. Bc7 {[%clk 0:01:57]}  Ra8 {[%clk 0:00:37]} 23. fxe5 {[%clk 0:01:51]}  Nxg3 {[%clk 0:00:36]} 24. Rxf7 {[%clk 0:01:47]}  Be6 {[%clk 0:00:29]} 25. Re7 {[%clk 0:01:47]}  Rd7 {[%clk 0:00:22]} 26. Rxd7 {[%clk 0:01:17]}  Bxd7 {[%clk 0:00:23]} 27. Kh2 {[%clk 0:01:17]}  Nf5 {[%clk 0:00:20]} 28. Rd1 {[%clk 0:01:17]}  Be6 {[%clk 0:00:21]} 29. Ne4 {[%clk 0:01:09]}  Ne3 {[%clk 0:00:13]} 30. Rd2 {[%clk 0:01:04]}  Nxg2 {[%clk 0:00:12]} 31. Kxg2 {[%clk 0:01:03]}  Rf8 {[%clk 0:00:10]} 32. Bd6 {[%clk 0:00:59]}  Rf4 {[%clk 0:00:08]} 33. Nc5 {[%clk 0:00:57]}  Rf7 {[%clk 0:00:07]} 34. Nxe6 {[%clk 0:00:57]}  Bxe5 {[%clk 0:00:04]} 35. Bxe5 {[%clk 0:00:54]}  Re7 {[%clk 0:00:05]} 36. Nc5 {[%clk 0:00:50]}  Rxe5 {[%clk 0:00:05]} 37. Nxb7 {[%clk 0:00:51]}  Re7 {[%clk 0:00:04]} 38. Nc5 {[%clk 0:00:51]}  a5 {[%clk 0:00:03]} 39. Rd7 {[%clk 0:00:51]}  Rxd7 {[%clk 0:00:03]} 40. Nxd7 {[%clk 0:00:52]} 1-0


[Site "https://www.chess.com"]

[Event "Titled Tuesday Blitz December 27 Early 2022"]
[White "Hnydiuk, Aleksander"]
[Black "Garcia Ramos, Daniel"]
[WhiteFideId "1109057"]
[BlackFideId "32010311"]
[WhiteElo "2363"]
[BlackElo "2442"]
[Result "1/2-1/2"]
[Round "05"]
[TimeControl "180+2"]
[Date "2022.12.27"]
[WhiteClock "0:00:05"]
[BlackClock "0:00:03"]

1. e4 {[%clk 0:03:00]}  c6 {[%clk 0:02:59]} 2. d4 {[%clk 0:03:00]}  d5 {[%clk 0:03:00]} 3. e5 {[%clk 0:03:01]}  Bf5 {[%clk 0:03:00]} 4. Nf3 {[%clk 0:03:01]}  e6 {[%clk 0:03:00]} 5. Be2 {[%clk 0:03:01]}  Nd7 {[%clk 0:03:00]} 6. O-O {[%clk 0:03:01]}  h6 {[%clk 0:03:01]} 7. Nbd2 {[%clk 0:03:01]}  a6 {[%clk 0:03:01]} 8. Nb3 {[%clk 0:03:01]}  c5 {[%clk 0:03:02]} 9. dxc5 {[%clk 0:02:48]}  Bxc5 {[%clk 0:03:02]} 10. Nxc5 {[%clk 0:02:32]}  Nxc5 {[%clk 0:03:03]} 11. Be3 {[%clk 0:02:32]}  Nd7 {[%clk 0:03:03]} 12. Nd4 {[%clk 0:02:18]}  Ne7 {[%clk 0:03:02]} 13. f4 {[%clk 0:01:58]}  O-O {[%clk 0:03:02]} 14. Nxf5 {[%clk 0:01:29]}  Nxf5 {[%clk 0:03:00]} 15. Bf2 {[%clk 0:01:30]}  Qc7 {[%clk 0:02:42]} 16. Bd3 {[%clk 0:01:30]}  Ne7 {[%clk 0:02:37]} 17. Qg4 {[%clk 0:01:22]}  Nc5 {[%clk 0:02:35]} 18. Rac1 {[%clk 0:00:57]}  Rac8 {[%clk 0:02:33]} 19. Be3 {[%clk 0:00:57]}  Ne4 {[%clk 0:02:29]} 20. c4 {[%clk 0:00:48]}  Qa5 {[%clk 0:01:30]} 21. cxd5 {[%clk 0:00:35]}  Qxd5 {[%clk 0:01:27]} 22. Qe2 {[%clk 0:00:26]}  Nf5 {[%clk 0:01:03]} 23. Ba7 {[%clk 0:00:22]}  Nc5 {[%clk 0:00:32]} 24. Bxf5 {[%clk 0:00:21]}  exf5 {[%clk 0:00:17]} 25. Rfd1 {[%clk 0:00:20]}  Qe4 {[%clk 0:00:10]} 26. Qc4 {[%clk 0:00:20]}  Ne6 {[%clk 0:00:06]} 27. Qxe4 {[%clk 0:00:20]}  fxe4 {[%clk 0:00:06]} 28. f5 {[%clk 0:00:18]}  Nf4 {[%clk 0:00:06]} 29. Kf1 {[%clk 0:00:14]}  Nd3 {[%clk 0:00:06]} 30. Rxc8 {[%clk 0:00:13]}  Rxc8 {[%clk 0:00:07]} 31. Ke2 {[%clk 0:00:08]}  Nxe5 {[%clk 0:00:06]} 32. Ke3 {[%clk 0:00:07]}  Ng4+ {[%clk 0:00:05]} 33. Kf4 {[%clk 0:00:06]}  Nf6 {[%clk 0:00:04]} 34. Bd4 {[%clk 0:00:05]}  Re8 {[%clk 0:00:02]} 35. Bxf6 {[%clk 0:00:04]}  gxf6 {[%clk 0:00:02]} 36. Ke3 {[%clk 0:00:04]}  Re7 {[%clk 0:00:03]} 37. Rd4 {[%clk 0:00:02]}  Re5 {[%clk 0:00:02]} 38. g4 {[%clk 0:00:01]}  h5 {[%clk 0:00:02]} 39. h3 {[%clk 0:00:02]}  hxg4 {[%clk 0:00:02]} 40. hxg4 {[%clk 0:00:02]}  Rb5 {[%clk 0:00:01]} 41. b3 {[%clk 0:00:03]}  Ra5 {[%clk 0:00:02]} 42. a4 {[%clk 0:00:03]}  Rc5 {[%clk 0:00:01]} 43. Kxe4 {[%clk 0:00:02]}  Rc3 {[%clk 0:00:01]} 44. Rb4 {[%clk 0:00:02]}  Rc7 {[%clk 0:00:01]} 45. Rb6 {[%clk 0:00:02]}  Kg7 {[%clk 0:00:02]} 46. Kf4 {[%clk 0:00:03]}  Rd7 {[%clk 0:00:01]} 47. a5 {[%clk 0:00:03]}  Rc7 {[%clk 0:00:02]} 48. b4 {[%clk 0:00:03]}  Kf8 {[%clk 0:00:01]} 49. Ke4 {[%clk 0:00:03]}  Ke7 {[%clk 0:00:01]} 50. b5 {[%clk 0:00:03]}  axb5 {[%clk 0:00:01]} 51. Rxb5 {[%clk 0:00:04]}  Rc4+ {[%clk 0:00:01]} 52. Kf3 {[%clk 0:00:03]}  Rc7 {[%clk 0:00:02]} 53. Rb6 {[%clk 0:00:04]}  Rd7 {[%clk 0:00:02]} 54. Kg3 {[%clk 0:00:04]}  Rc7 {[%clk 0:00:03]} 55. Kh4 {[%clk 0:00:04]}  Rd7 {[%clk 0:00:03]} 56. Rb5 {[%clk 0:00:04]}  Rc7 {[%clk 0:00:03]} 57. Rb6 {[%clk 0:00:04]}  Rd7 {[%clk 0:00:03]} 58. Kg3 {[%clk 0:00:04]}  Rc7 {[%clk 0:00:03]} 59. Kh4 {[%clk 0:00:05]} 1/2-1/2


[Site "https://www.chess.com"]

[Event "Titled Tuesday Blitz December 27 Early 2022"]
[White "Hoffmann, Asa"]
[Black "Tharushi, T H D Niklesha"]
[WhiteFideId "2001470"]
[BlackFideId "9918264"]
[WhiteElo "2185"]
[BlackElo "1570"]
[Result "1/2-1/2"]
[Round "05"]
[TimeControl "180+2"]
[Date "2022.12.27"]
[WhiteClock "0:00:26"]
[BlackClock "0:00:14"]

1. d4 {[%clk 0:02:58]}  Nf6 {[%clk 0:02:59]} 2. Bg5 {[%clk 0:02:49]}  Ne4 {[%clk 0:02:58]} 3. Bf4 {[%clk 0:02:49]}  d5 {[%clk 0:02:56]} 4. f3 {[%clk 0:02:49]}  Nf6 {[%clk 0:02:53]} 5. e4 {[%clk 0:02:48]}  dxe4 {[%clk 0:02:51]} 6. Nc3 {[%clk 0:02:48]}  exf3 {[%clk 0:02:50]} 7. Nxf3 {[%clk 0:02:47]}  e6 {[%clk 0:02:51]} 8. Bc4 {[%clk 0:02:46]}  Bd6 {[%clk 0:02:46]} 9. Qd2 {[%clk 0:02:45]}  O-O {[%clk 0:02:40]} 10. O-O-O {[%clk 0:02:45]}  a6 {[%clk 0:02:36]} 11. Bg5 {[%clk 0:02:44]}  h6 {[%clk 0:02:25]} 12. Bh4 {[%clk 0:02:44]}  Be7 {[%clk 0:02:22]} 13. Rhf1 {[%clk 0:02:41]}  b5 {[%clk 0:02:18]} 14. Bb3 {[%clk 0:02:38]}  Bb7 {[%clk 0:02:09]} 15. Ne5 {[%clk 0:02:35]}  Ne4 {[%clk 0:02:06]} 16. Nxe4 {[%clk 0:02:26]}  Bxh4 {[%clk 0:02:06]} 17. g3 {[%clk 0:02:15]}  Be7 {[%clk 0:02:01]} 18. Qe2 {[%clk 0:02:13]}  Bg5+ {[%clk 0:01:57]} 19. Kb1 {[%clk 0:02:11]}  Nc6 {[%clk 0:01:49]} 20. Nxf7 {[%clk 0:01:59]}  Nxd4 {[%clk 0:01:38]} 21. Nxd8 {[%clk 0:01:48]}  Nxe2 {[%clk 0:01:36]} 22. Rxf8+ {[%clk 0:01:45]}  Kxf8 {[%clk 0:01:36]} 23. Nxg5 {[%clk 0:01:34]}  hxg5 {[%clk 0:01:27]} 24. Nxb7 {[%clk 0:01:34]}  Ke7 {[%clk 0:01:22]} 25. Nc5 {[%clk 0:01:32]}  Rh8 {[%clk 0:01:21]} 26. Nxe6 {[%clk 0:01:30]}  Rxh2 {[%clk 0:01:21]} 27. Nxg5 {[%clk 0:01:29]}  Nxg3 {[%clk 0:01:19]} 28. a3 {[%clk 0:01:23]}  Kf6 {[%clk 0:01:18]} 29. Rg1 {[%clk 0:01:21]}  Ne2 {[%clk 0:01:16]} 30. Nf3 {[%clk 0:01:05]}  Rf2 {[%clk 0:01:12]} 31. Re1 {[%clk 0:00:58]}  g5 {[%clk 0:01:09]} 32. Nd2 {[%clk 0:00:56]}  Nc3+ {[%clk 0:01:03]} 33. bxc3 {[%clk 0:00:54]}  Rxd2 {[%clk 0:01:04]} 34. c4 {[%clk 0:00:53]}  g4 {[%clk 0:01:03]} 35. Rg1 {[%clk 0:00:52]}  Kf5 {[%clk 0:01:02]} 36. cxb5 {[%clk 0:00:52]}  axb5 {[%clk 0:01:02]} 37. Kb2 {[%clk 0:00:52]}  Kf4 {[%clk 0:01:01]} 38. Kc3 {[%clk 0:00:52]}  Rf2 {[%clk 0:01:01]} 39. Kb4 {[%clk 0:00:51]}  g3 {[%clk 0:01:01]} 40. Kxb5 {[%clk 0:00:50]}  g2 {[%clk 0:01:01]} 41. Bd5 {[%clk 0:00:46]}  Rxc2 {[%clk 0:00:55]} 42. Rxg2 {[%clk 0:00:45]}  Rc3 {[%clk 0:00:50]} 43. a4 {[%clk 0:00:45]}  Ke5 {[%clk 0:00:50]} 44. Bc4 {[%clk 0:00:43]}  c6+ {[%clk 0:00:49]} 45. Kb4 {[%clk 0:00:43]}  Rc1 {[%clk 0:00:48]} 46. Rg6 {[%clk 0:00:42]}  Rb1+ {[%clk 0:00:44]} 47. Kc5 {[%clk 0:00:42]}  Ra1 {[%clk 0:00:42]} 48. Bb3 {[%clk 0:00:40]}  Rc1+ {[%clk 0:00:42]} 49. Kb6 {[%clk 0:00:40]}  c5 {[%clk 0:00:42]} 50. Rc6 {[%clk 0:00:40]}  Kd4 {[%clk 0:00:42]} 51. a5 {[%clk 0:00:39]}  Rb1 {[%clk 0:00:42]} 52. Rd6+ {[%clk 0:00:38]}  Ke5 {[%clk 0:00:39]} 53. Rd3 {[%clk 0:00:37]}  c4 {[%clk 0:00:39]} 54. Re3+ {[%clk 0:00:37]}  Kd4 {[%clk 0:00:38]} 55. Rh3 {[%clk 0:00:35]}  Rxb3+ {[%clk 0:00:38]} 56. Rxb3 {[%clk 0:00:29]}  cxb3 {[%clk 0:00:38]} 57. a6 {[%clk 0:00:29]}  b2 {[%clk 0:00:39]} 58. a7 {[%clk 0:00:29]}  b1=Q+ {[%clk 0:00:40]} 59. Kc7 {[%clk 0:00:29]}  Qc2+ {[%clk 0:00:40]} 60. Kb7 {[%clk 0:00:29]}  Qb3+ {[%clk 0:00:40]} 61. Kc7 {[%clk 0:00:28]}  Qc4+ {[%clk 0:00:40]} 62. Kb7 {[%clk 0:00:28]}  Qb5+ {[%clk 0:00:40]} 63. Kc7 {[%clk 0:00:28]}  Qc5+ {[%clk 0:00:38]} 64. Kb7 {[%clk 0:00:28]}  Qe7+ {[%clk 0:00:38]} 65. Kb8 {[%clk 0:00:27]}  Qd8+ {[%clk 0:00:37]} 66. Kb7 {[%clk 0:00:27]}  Qd7+ {[%clk 0:00:37]} 67. Kb8 {[%clk 0:00:27]}  Qd6+ {[%clk 0:00:37]} 68. Kb7 {[%clk 0:00:26]}  Qe7+ {[%clk 0:00:21]} 69. Kb8 {[%clk 0:00:26]}  Qd8+ {[%clk 0:00:20]} 70. Kb7 {[%clk 0:00:26]}  Qd7+ {[%clk 0:00:21]} 71. Kb8 {[%clk 0:00:26]}  Qd6+ {[%clk 0:00:16]} 72. Kb7 {[%clk 0:00:26]}  Qd7+ {[%clk 0:00:14]} 1/2-1/2


[Site "https://www.chess.com"]

[Event "Titled Tuesday Blitz December 27 Early 2022"]
[White "Ilkhomi, Jaloliddin"]
[Black "Bochnicka, Vladimir"]
[WhiteFideId "14700948"]
[BlackFideId "14943450"]
[WhiteElo "1997"]
[BlackElo "2327"]
[Result "1-0"]
[Round "05"]
[TimeControl "180+2"]
[Date "2022.12.27"]
[WhiteClock "0:00:21"]
[BlackClock "0:00:25"]

1. d4 {[%clk 0:02:56]}  Nf6 {[%clk 0:02:56]} 2. Nf3 {[%clk 0:02:55]}  g6 {[%clk 0:02:54]} 3. Bg5 {[%clk 0:02:55]}  Bg7 {[%clk 0:02:49]} 4. Nbd2 {[%clk 0:02:55]}  O-O {[%clk 0:02:50]} 5. c3 {[%clk 0:02:54]}  d6 {[%clk 0:02:50]} 6. e4 {[%clk 0:02:54]}  h6 {[%clk 0:02:46]} 7. Bh4 {[%clk 0:02:48]}  Nbd7 {[%clk 0:02:43]} 8. Bd3 {[%clk 0:02:47]}  e5 {[%clk 0:02:42]} 9. Qe2 {[%clk 0:02:45]}  Re8 {[%clk 0:02:36]} 10. O-O {[%clk 0:02:42]}  Nf8 {[%clk 0:02:35]} 11. Rfd1 {[%clk 0:02:37]}  Qe7 {[%clk 0:02:30]} 12. dxe5 {[%clk 0:02:20]}  dxe5 {[%clk 0:02:30]} 13. Nc4 {[%clk 0:02:20]}  g5 {[%clk 0:02:28]} 14. Bg3 {[%clk 0:02:20]}  N6d7 {[%clk 0:02:19]} 15. Ne3 {[%clk 0:02:15]}  Ng6 {[%clk 0:02:14]} 16. Nf5 {[%clk 0:02:00]}  Qf6 {[%clk 0:02:15]} 17. Bb5 {[%clk 0:01:45]}  c6 {[%clk 0:01:56]} 18. Bc4 {[%clk 0:01:45]}  Bf8 {[%clk 0:01:46]} 19. Rd2 {[%clk 0:01:12]}  Nc5 {[%clk 0:01:40]} 20. Rad1 {[%clk 0:01:04]}  Nxe4 {[%clk 0:01:27]} 21. Nxh6+ {[%clk 0:00:57]}  Bxh6 {[%clk 0:01:28]} 22. Qxe4 {[%clk 0:00:57]}  g4 {[%clk 0:01:02]} 23. Rd6 {[%clk 0:00:54]}  Qf5 {[%clk 0:00:31]} 24. Rxg6+ {[%clk 0:00:46]}  Kh7 {[%clk 0:00:31]} 25. Qxf5 {[%clk 0:00:46]}  Bxf5 {[%clk 0:00:31]} 26. Rf6 {[%clk 0:00:47]}  Bc2 {[%clk 0:00:26]} 27. Rxf7+ {[%clk 0:00:45]}  Kh8 {[%clk 0:00:24]} 28. Bxe5+ {[%clk 0:00:19]}  Rxe5 {[%clk 0:00:24]} 29. Nxe5 {[%clk 0:00:20]}  Bxd1 {[%clk 0:00:24]} 30. Ng6+ {[%clk 0:00:21]}  Kg8 {[%clk 0:00:25]} 31. Re7# {[%clk 0:00:21]} 1-0


[Site "https://www.chess.com"]

[Event "Titled Tuesday Blitz December 27 Early 2022"]
[White "Jimenez Almeida, Luis David"]
[Black "Odegov, Artem"]
[WhiteFideId "22242244"]
[BlackFideId "34183644"]
[WhiteElo "2242"]
[BlackElo "2261"]
[Result "1-0"]
[Round "05"]
[TimeControl "180+2"]
[Date "2022.12.27"]
[WhiteClock "0:00:19"]
[BlackClock "0:00:09"]

1. e4 {[%clk 0:02:15]}  e6 {[%clk 0:02:56]} 2. d4 {[%clk 0:02:13]}  d5 {[%clk 0:02:55]} 3. e5 {[%clk 0:02:13]}  c5 {[%clk 0:02:52]} 4. c3 {[%clk 0:02:14]}  Qb6 {[%clk 0:02:50]} 5. Nf3 {[%clk 0:02:13]}  Nc6 {[%clk 0:02:50]} 6. a3 {[%clk 0:02:13]}  Nh6 {[%clk 0:02:49]} 7. b4 {[%clk 0:02:13]}  cxd4 {[%clk 0:02:50]} 8. cxd4 {[%clk 0:02:14]}  Nf5 {[%clk 0:02:50]} 9. Be3 {[%clk 0:02:15]}  f6 {[%clk 0:02:50]} 10. exf6 {[%clk 0:02:10]}  gxf6 {[%clk 0:02:49]} 11. Bd3 {[%clk 0:02:01]}  Nxe3 {[%clk 0:02:38]} 12. fxe3 {[%clk 0:02:02]}  e5 {[%clk 0:02:38]} 13. Nc3 {[%clk 0:01:47]}  Be6 {[%clk 0:02:31]} 14. Be2 {[%clk 0:01:36]}  Rc8 {[%clk 0:02:21]} 15. O-O {[%clk 0:01:28]}  Nxd4 {[%clk 0:02:13]} 16. Nxd4 {[%clk 0:01:24]}  exd4 {[%clk 0:02:10]} 17. Na4 {[%clk 0:01:22]}  Qd6 {[%clk 0:02:01]} 18. Bh5+ {[%clk 0:01:20]}  Kd8 {[%clk 0:01:59]} 19. exd4 {[%clk 0:01:21]}  Bd7 {[%clk 0:01:33]} 20. Nc5 {[%clk 0:01:20]}  Kc7 {[%clk 0:01:27]} 21. Rc1 {[%clk 0:01:16]}  Kb8 {[%clk 0:01:27]} 22. Rxf6 {[%clk 0:00:59]}  Rxc5 {[%clk 0:01:03]} 23. Rxd6 {[%clk 0:00:59]}  Rxc1 {[%clk 0:01:04]} 24. Qxc1 {[%clk 0:00:59]}  Bxd6 {[%clk 0:01:05]} 25. Qg5 {[%clk 0:00:57]}  Rf8 {[%clk 0:00:59]} 26. Qxd5 {[%clk 0:00:49]}  Rf6 {[%clk 0:00:52]} 27. Bf3 {[%clk 0:00:48]}  Bc6 {[%clk 0:00:44]} 28. Qg8+ {[%clk 0:00:48]}  Rf8 {[%clk 0:00:43]} 29. Qe6 {[%clk 0:00:38]}  Bc7 {[%clk 0:00:33]} 30. Bxc6 {[%clk 0:00:37]}  bxc6 {[%clk 0:00:33]} 31. Qxc6 {[%clk 0:00:37]}  Rd8 {[%clk 0:00:28]} 32. Qb5+ {[%clk 0:00:36]}  Bb6 {[%clk 0:00:27]} 33. h3 {[%clk 0:00:31]}  Rxd4 {[%clk 0:00:27]} 34. Kh2 {[%clk 0:00:31]}  h6 {[%clk 0:00:22]} 35. a4 {[%clk 0:00:27]}  Kc8 {[%clk 0:00:20]} 36. Qf5+ {[%clk 0:00:24]}  Kb7 {[%clk 0:00:18]} 37. Qf7+ {[%clk 0:00:22]}  Bc7+ {[%clk 0:00:11]} 38. Kg1 {[%clk 0:00:22]}  Rxb4 {[%clk 0:00:10]} 39. Qd5+ {[%clk 0:00:20]}  Kb8 {[%clk 0:00:09]} 40. Qc6 {[%clk 0:00:18]}  Rb6 {[%clk 0:00:07]} 41. Qe8+ {[%clk 0:00:17]}  Kb7 {[%clk 0:00:07]} 42. g4 {[%clk 0:00:18]}  Rb1+ {[%clk 0:00:05]} 43. Kg2 {[%clk 0:00:18]}  Rb2+ {[%clk 0:00:06]} 44. Kf3 {[%clk 0:00:19]}  Rb3+ {[%clk 0:00:06]} 45. Ke4 {[%clk 0:00:18]}  Rb4+ {[%clk 0:00:06]} 46. Kf5 {[%clk 0:00:17]}  Rb6 {[%clk 0:00:03]} 47. Qe4+ {[%clk 0:00:16]}  Kb8 {[%clk 0:00:03]} 48. h4 {[%clk 0:00:16]}  Ra6 {[%clk 0:00:03]} 49. Qe8+ {[%clk 0:00:14]}  Kb7 {[%clk 0:00:03]} 50. Qb5+ {[%clk 0:00:14]}  Bb6 {[%clk 0:00:03]} 51. Kg6 {[%clk 0:00:11]}  Ra5 {[%clk 0:00:02]} 52. Qd7+ {[%clk 0:00:11]}  Bc7 {[%clk 0:00:02]} 53. Kxh6 {[%clk 0:00:10]}  Ra6+ {[%clk 0:00:03]} 54. Kh7 {[%clk 0:00:11]}  Rd6 {[%clk 0:00:02]} 55. Qb5+ {[%clk 0:00:10]}  Kc8 {[%clk 0:00:02]} 56. g5 {[%clk 0:00:10]}  a6 {[%clk 0:00:03]} 57. Qe8+ {[%clk 0:00:09]}  Rd8 {[%clk 0:00:03]} 58. Qe6+ {[%clk 0:00:09]}  Kb7 {[%clk 0:00:03]} 59. g6 {[%clk 0:00:08]}  Rd6 {[%clk 0:00:04]} 60. Qe4+ {[%clk 0:00:08]}  Kb6 {[%clk 0:00:02]} 61. g7 {[%clk 0:00:08]}  a5 {[%clk 0:00:03]} 62. Qe3+ {[%clk 0:00:08]}  Kc6 {[%clk 0:00:03]} 63. g8=Q {[%clk 0:00:09]}  Rd7+ {[%clk 0:00:03]} 64. Qg7 {[%clk 0:00:09]}  Rxg7+ {[%clk 0:00:03]} 65. Kxg7 {[%clk 0:00:10]}  Bd6 {[%clk 0:00:04]} 66. h5 {[%clk 0:00:10]}  Bb4 {[%clk 0:00:04]} 67. Qe4+ {[%clk 0:00:10]}  Kc5 {[%clk 0:00:03]} 68. h6 {[%clk 0:00:11]}  Bd2 {[%clk 0:00:03]} 69. Kg6 {[%clk 0:00:12]}  Bxh6 {[%clk 0:00:03]} 70. Kxh6 {[%clk 0:00:12]}  Kb6 {[%clk 0:00:03]} 71. Kg5 {[%clk 0:00:13]}  Ka6 {[%clk 0:00:04]} 72. Kf4 {[%clk 0:00:14]}  Kb6 {[%clk 0:00:04]} 73. Ke3 {[%clk 0:00:15]}  Ka6 {[%clk 0:00:05]} 74. Kd3 {[%clk 0:00:16]}  Kb6 {[%clk 0:00:06]} 75. Kc4 {[%clk 0:00:16]}  Kc7 {[%clk 0:00:07]} 76. Qe6 {[%clk 0:00:16]}  Kd8 {[%clk 0:00:07]} 77. Kc5 {[%clk 0:00:17]}  Kc7 {[%clk 0:00:08]} 78. Qf7+ {[%clk 0:00:18]}  Kd8 {[%clk 0:00:08]} 79. Kd6 {[%clk 0:00:18]}  Kc8 {[%clk 0:00:09]} 80. Qc7# {[%clk 0:00:19]} 1-0


[Site "https://www.chess.com"]